bitfinex/quotes_SOLUSD_20250210
["timestamp","ask_amount","ask_price","bid_price","bid_amount"]
[1739161530657,20.19443456,202.25,202.17,14.11503456]
[1739161530850,14.11503456,202.25,202.17,14.11503456]
[1739161531364,14.11503456,202.25,202.18,14.11503456]
[1739161531569,45.0563429,202.26,202.19,18.07153456]
[1739161531733,14.11503456,202.25,202.18,14.11503456]
[1739161532752,14.11503456,202.25,202.19,3.9566]
[1739161533165,14.11503456,202.26,202.19,3.9566]
[1739161533352,14.11503456,202.26,202.19,18.07163456]
[1739161534372,156.61503456,202.29,202.21,14.11503456]
[1739161534576,14.11503456,202.3,202.23,14.11503456]
[1739161534878,14.11503456,202.31,202.24,18.07063456]
[1739161535169,14.11503456,202.31,202.24,3.9556]
[1739161535378,15.47065417,202.32,202.29,14.11503456]
[1739161535537,15.47065417,202.32,202.2,20.17633456]
[1739161535538,14.11503456,202.3,202.2,20.17633456]
[1739161535741,15.04209236,202.3,202.19,1.6616]
[1739161536040,0.12549,202.25,202.15,10.0186]
[1739161536264,20.0,202.22,202.14,1.6616]
[1739161536435,14.11503456,202.2,202.14,1.6616]
[1739161536637,14.11503456,202.19,202.11,18.07313456]
[1739161536855,75.61503456,202.23,202.17,14.11503456]
[1739161537061,61.5,202.23,202.17,14.11503456]
[1739161537266,75.61503456,202.23,202.16,14.11503456]
[1739161537570,75.61503456,202.23,202.15,14.11503456]
[1739161537571,14.11503456,202.22,202.15,14.11503456]
[1739161537768,34.11503456,202.2,202.13,14.11503456]
[1739161537950,14.11503456,202.19,202.12,14.11503456]
[1739161538147,65.4559,202.23,202.11,18.07313456]
[1739161538148,14.11503456,202.18,202.11,18.07313456]
[1739161538651,14.11503456,202.17,202.1,20.63713456]
[1739161538854,14.11503456,202.17,202.09,18.07343456]
[1739161539166,14.11503456,202.17,202.1,14.11503456]
[1739161539469,34.11503456,202.18,202.1,14.11503456]
[1739161540042,34.11503456,202.18,202.11,18.07313456]
[1739161540243,20.0,202.18,202.12,14.11503456]
[1739161540747,34.11503456,202.18,202.11,18.07313456]
[1739161541066,14.11503456,202.17,202.11,3.9581]
[1739161542673,14.11503456,202.17,202.11,13.41184853]
[1739161542875,14.11503456,202.17,202.1,14.11503456]
[1739161543171,14.11503456,202.17,202.1,13.41184853]
[1739161543373,14.11503456,202.16,202.09,18.07363456]
[1739161543750,8.82239924,202.16,202.09,12.78099924]
[1739161543951,8.82239924,202.15,202.09,3.9586]
[1739161544156,8.82239924,202.12,202.06,0.063]
[1739161544452,8.82239924,202.11,202.06,0.063]
[1739161546974,8.82239924,202.13,202.06,8.88539924]
[1739161547546,3.9576,202.15,202.06,8.82239924]
[1739161547748,8.82239924,202.12,202.05,8.82239924]
[1739161547958,8.82239924,202.11,202.04,8.82239924]
[1739161548479,8.82239924,202.1,202.03,10.40999924]
[1739161548644,8.82239924,202.1,202.03,1.5876]
[1739161548849,8.82239924,202.1,202.03,10.40999924]
[1739161549369,8.82239924,202.1,202.03,14.36959924]
[1739161550183,8.82239924,202.07,202.03,0.063]
[1739161550357,8.82239924,202.05,202.03,0.063]
[1739161550552,8.82239924,202.04,202.03,0.063]
[1739161551578,26.44482777,202.04,202.03,0.063]
[1739161551778,35.26722701,202.04,202.03,0.063]
[1739161552078,36.19554618,202.04,202.03,0.063]
[1739161552279,26.44482777,202.04,202.03,0.063]
[1739161554093,87.94482777,202.04,202.03,0.063]
[1739161554286,70.44788924,202.04,202.03,0.063]
[1739161554856,70.32239924,202.04,202.03,0.063]
[1739161556575,70.32239924,202.04,201.97,3.93941272]
[1739161556766,10.1445,202.07,201.97,3.93941272]
[1739161556767,28.82239924,202.03,201.97,3.93941272]
[1739161556965,61.5,202.06,201.99,8.82239924]
[1739161556966,8.82239924,202.06,201.99,8.82239924]
[1739161557176,8.82239924,202.07,202.0,8.82239924]
[1739161557368,8.82239924,202.07,202.01,8.82239924]
[1739161558090,8.82239924,202.07,202.0,8.82239924]
[1739161558881,3.9883,202.11,202.04,8.82239924]
[1739161558882,8.85239924,202.11,202.04,8.82239924]
[1739161559087,8.85239924,202.11,202.06,8.82239924]
[1739161559088,0.03,202.11,202.06,8.82239924]
[1739161559287,0.03,202.11,202.07,8.82239924]
[1739161560286,0.03,202.11,202.08,3.9588]
[1739161561383,0.03,202.11,202.06,12.78139924]
[1739161563670,8.85239924,202.11,202.06,3.959]
[1739161564590,8.85239924,202.11,202.05,8.82239924]
[1739161564591,0.03,202.11,202.05,8.82239924]
[1739161564803,0.03,202.11,202.06,8.82239924]
[1739161565676,0.03,202.11,202.04,13.53733853]
[1739161565868,0.03,202.11,202.1,8.82239924]
[1739161566283,0.03,202.11,202.08,8.82239924]
[1739161566811,0.03,202.11,202.09,3.9586]
[1739161567291,0.03,202.11,202.1,8.82239924]
[1739161567492,0.03,202.11,202.1,8.94788924]
[1739161567694,0.03,202.11,202.1,22.35973777]
[1739161568500,0.03,202.11,202.1,20.0]
[1739161568800,0.03,202.11,202.06,8.82239924]
[1739161568966,0.03,202.11,202.03,1.063]
[1739161568967,8.82239924,202.1,202.04,3.9596]
[1739161569173,8.82239924,202.09,202.04,3.9596]
[1739161569998,8.82239924,202.09,202.03,0.063]
[1739161569999,8.82239924,202.07,202.03,0.063]
[1739161570187,8.82239924,202.04,202.03,0.063]
[1739161571799,14.1340316,202.04,201.97,5.5529]
[1739161571982,14.1340316,202.03,201.97,5.5529]
[1739161572186,14.1340316,202.02,201.97,1.592]
[1739161572367,14.1340316,202.01,201.97,1.592]
[1739161572775,14.1340316,202.0,201.97,1.592]
[1739161572974,14.1340316,202.01,201.97,1.592]
[1739161573174,14.1340316,202.02,201.97,1.592]
[1739161573404,14.1340316,202.03,201.97,1.592]
[1739161574101,14.1340316,202.04,201.97,19.6869316]
[1739161574298,34.1340316,202.05,201.98,14.1340316]
[1739161574485,14.1340316,202.04,201.97,19.6869316]
[1739161574686,14.1340316,202.03,201.97,5.5529]
[1739161574883,14.1340316,202.01,201.97,1.592]
[1739161575091,14.1340316,202.0,201.97,1.592]
[1739161575291,14.1340316,202.03,201.97,1.592]
[1739161576092,14.1340316,202.02,201.97,1.592]
[1739161576884,14.1340316,202.01,201.94,14.1340316]
[1739161577194,14.1340316,202.01,201.97,0.063]
[1739161577195,0.12549,202.01,201.97,0.063]
[1739161577396,13.53733853,201.97,201.91,0.063]
[1739161577598,62.4286878,201.96,201.91,0.063]
[1739161577899,20.0,201.93,201.91,0.063]
[1739161578307,62.4286878,201.96,201.91,0.063]
[1739161578308,3.9613,201.95,201.91,0.063]
[1739161578477,14.1340316,201.92,201.91,0.063]
[1739161578681,14.1340316,201.93,201.91,0.063]
[1739161578881,34.1340316,201.94,201.91,0.063]
[1739161579108,14.1340316,201.95,201.91,0.063]
[1739161580404,14.1340316,201.96,201.91,0.063]
[1739161580609,14.1340316,201.95,201.91,0.063]
[1739161581105,14.1340316,201.96,201.91,0.063]
[1739161581821,61.62549,202.0,201.93,14.1340316]
[1739161581822,14.1340316,202.0,201.93,14.1340316]
[1739161582314,14.1340316,201.99,201.92,14.1340316]
[1739161582483,14.1340316,202.01,201.94,14.1340316]
[1739161582894,3.9596,202.04,201.93,14.1340316]
[1739161582895,14.1340316,202.0,201.93,14.1340316]
[1739161583225,14.1340316,202.0,201.92,3.9618]
[1739161583226,14.1340316,202.0,201.92,18.0958316]
[1739161584215,14.1340316,201.99,201.92,18.0958316]
[1739161585297,14.1340316,202.01,201.94,18.0955316]
[1739161585615,14.1340316,202.0,201.94,3.9615]
[1739161586716,14.1340316,201.99,201.92,18.0958316]
[1739161587816,14.1340316,202.0,201.93,14.1340316]
[1739161588818,14.1340316,202.0,201.94,0.063]
[1739161589018,14.1640316,202.0,201.94,0.063]
[1739161590501,0.03,202.0,201.95,14.1340316]
[1739161590920,0.03,202.0,201.94,14.1970316]
[1739161591818,0.03,202.0,201.94,8.89802217]
[1739161592002,0.03,202.0,201.95,3.9613]
[1739161594425,0.03,202.0,201.95,12.79632217]
[1739161594605,0.03,202.0,201.96,8.83502217]
[1739161595605,0.03,202.0,201.95,12.79632217]
[1739161596005,8.83502217,201.99,201.94,4.0245]
[1739161596309,0.03,202.0,201.95,8.83502217]
[1739161596519,0.03,202.0,201.96,3.9611]
[1739161596712,0.03,202.0,201.96,12.79612217]
[1739161597218,0.03,202.0,201.96,3.9611]
[1739161598103,0.03,202.0,201.96,12.79612217]
[1739161598726,0.03,202.0,201.97,8.83502217]
[1739161599021,0.03,202.0,201.96,12.79612217]
[1739161599428,0.03,202.0,201.96,3.9611]
[1739161599608,0.03,202.0,201.95,8.83502217]
[1739161599924,8.83502217,201.99,201.95,3.9613]
[1739161600237,8.86502217,202.0,201.95,3.9613]
[1739161602028,0.03,202.0,201.95,3.9613]
[1739161603501,8.83502217,201.98,201.94,0.063]
[1739161603746,8.83502217,201.97,201.94,0.063]
[1739161604012,8.83502217,201.96,201.94,0.063]
[1739161604207,0.03,202.0,201.94,0.063]
[1739161604208,8.83502217,201.97,201.94,0.063]
[1739161605116,8.83502217,201.98,201.94,4.0245]
[1739161605410,61.53,202.0,201.94,0.063]
[1739161605411,8.83502217,201.99,201.94,0.063]
[1739161605610,8.83502217,201.98,201.94,0.063]
[1739161606532,8.83502217,201.99,201.94,0.063]
[1739161607045,8.83502217,201.98,201.94,0.063]
[1739161608713,8.83502217,201.97,201.94,0.063]
[1739161611428,8.83502217,201.98,201.94,0.063]
[1739161612520,8.86502217,201.97,201.94,0.063]
[1739161613720,0.03,201.97,201.94,0.063]
[1739161616271,8.83502217,201.96,201.94,0.063]
[1739161616543,8.83502217,201.95,201.94,0.063]
[1739161617246,8.83502217,201.93,201.91,0.063]
[1739161617546,8.83502217,201.92,201.91,0.063]
[1739161620556,8.83502217,201.93,201.91,0.063]
[1739161621056,3.9613,201.96,201.91,0.063]
[1739161621057,8.83502217,201.96,201.91,0.063]
[1739161622427,8.83502217,201.96,201.91,4.0251]
[1739161623531,0.03,201.97,201.95,8.83502217]
[1739161623734,0.03,201.97,201.96,8.83502217]
[1739161623933,0.03,201.97,201.95,8.83502217]
[1739161624547,0.03,201.97,201.96,8.83502217]
[1739161625549,0.03,201.97,201.96,12.79612217]
[1739161625848,0.03,201.97,201.96,26.2079707]
[1739161626026,0.03,201.97,201.96,26.3334607]
[1739161626227,0.03,202.0,201.97,13.53733853]
[1739161626465,0.03,202.0,201.99,22.3723607]
[1739161627235,0.03,202.0,201.99,22.4978507]
[1739161627431,15.47065417,202.05,202.03,13.53733853]
[1739161627649,15.47065417,202.05,202.04,22.3723607]
[1739161627845,0.03,202.11,202.05,13.53733853]
[1739161628035,0.03,202.11,202.06,8.83502217]
[1739161628355,0.03,202.11,202.05,22.2468707]
[1739161628933,0.03,202.11,202.06,8.83502217]
[1739161629246,0.03,202.11,202.07,8.83502217]
[1739161629757,0.03,202.11,202.06,28.83502217]
[1739161630225,0.03,202.11,202.07,22.3723607]
[1739161630856,0.03,202.11,202.07,26.3311607]
[1739161631548,8.83502217,202.08,202.01,8.83502217]
[1739161631851,8.83502217,202.09,202.02,22.3723607]
[1739161632743,8.83502217,202.09,202.02,26.3322607]
[1739161633263,8.83502217,202.06,202.0,11.9187]
[1739161633731,8.83502217,202.04,202.0,11.9187]
[1739161634655,8.83502217,202.06,202.0,11.9187]
[1739161635154,8.83502217,202.08,202.01,22.3723607]
[1739161635367,8.83502217,202.08,202.01,8.96051217]
[1739161635735,8.83502217,202.09,202.03,8.83502217]
[1739161636129,8.83502217,202.08,202.01,22.3723607]
[1739161636959,8.83502217,202.08,202.02,3.96]
[1739161637657,0.03,202.06,202.02,3.96]
[1739161639767,0.03,202.06,202.05,29.08600217]
[1739161639949,0.03,202.11,202.06,0.25098]
[1739161640266,0.03,202.11,202.1,8.96051217]
[1739161641242,0.03,202.11,202.1,22.3723607]
[1739161641560,0.03,202.18,202.14,27.38903853]
[1739161641767,0.03,202.18,202.17,8.83502217]
[1739161641950,0.03,202.18,202.16,8.83502217]
[1739161642139,0.03,202.18,202.15,8.83502217]
[1739161642837,8.83502217,202.16,202.1,6.2585]
[1739161643464,0.03,202.18,202.13,28.83502217]
[1739161643644,0.03,202.18,202.14,8.83502217]
[1739161644436,0.03,202.18,202.13,20.0]
[1739161644639,8.86502217,202.18,202.13,20.0]
[1739161645464,0.03,202.18,202.13,20.0]
[1739161645874,0.03,202.18,202.13,28.83502217]
[1739161646875,0.03,202.18,202.14,8.83502217]
[1739161647556,0.03,202.18,202.13,28.83502217]
[1739161647750,8.83502217,202.15,202.09,1.5582]
[1739161647941,8.83502217,202.14,202.09,1.5582]
[1739161648455,0.03,202.18,202.09,1.5582]
[1739161648456,8.83502217,202.16,202.09,10.39322217]
[1739161648660,12.79212217,202.17,202.1,8.83502217]
[1739161648854,0.03,202.18,202.12,8.83502217]
[1739161651267,0.03,202.18,202.13,8.83502217]
[1739161651470,0.03,202.18,202.16,8.83502217]
[1739161651767,0.03,202.18,202.13,0.12549]
[1739161651768,0.03,202.18,202.17,8.83502217]
[1739161652768,0.03,202.18,202.16,8.96051217]
[1739161652945,0.03,202.18,202.16,0.12549]
[1739161653145,0.03,202.18,202.13,8.83502217]
[1739161653677,0.03,202.18,202.15,8.83502217]
[1739161654176,0.03,202.18,202.16,8.83502217]
[1739161654642,0.03,202.18,202.15,8.96051217]
[1739161654948,0.03,202.18,202.15,0.12549]
[1739161655868,0.03,202.18,202.13,8.83502217]
[1739161656068,8.86502217,202.18,202.11,8.83502217]
[1739161656370,8.83502217,202.15,202.09,1.5582]
[1739161656771,8.83502217,202.17,202.1,8.83502217]
[1739161656980,0.03,202.18,202.12,8.83502217]
[1739161657273,0.03,202.18,202.13,8.83502217]
[1739161657574,0.03,202.18,202.14,8.83502217]
[1739161657760,0.03,202.18,202.13,8.83502217]
[1739161657956,0.03,202.18,202.13,0.12549]
[1739161658269,0.03,202.18,202.13,8.96051217]
[1739161659075,8.83502217,202.16,202.09,10.39322217]
[1739161659450,8.83502217,202.17,202.1,8.83502217]
[1739161659650,8.83502217,202.16,202.09,30.39322217]
[1739161660268,12.82202217,202.18,202.11,0.063]
[1739161660549,8.86502217,202.18,202.11,0.063]
[1739161660768,0.03,202.18,202.12,8.83502217]
[1739161662059,0.03,202.18,202.13,3.9578]
[1739161662464,8.83502217,202.17,202.11,0.063]
[1739161662672,8.83502217,202.15,202.11,0.063]
[1739161663981,0.03,202.18,202.11,0.063]
[1739161663982,8.83502217,202.16,202.11,0.063]
[1739161664175,8.83502217,202.17,202.11,0.063]
[1739161664480,3.9868,202.18,202.11,0.063]
[1739161664481,8.83502217,202.16,202.11,0.063]
[1739161665076,8.83502217,202.17,202.11,0.063]
[1739161666160,8.83502217,202.16,202.11,0.063]
[1739161666359,8.83502217,202.17,202.11,0.063]
[1739161666584,8.86502217,202.18,202.11,8.89802217]
[1739161667376,12.82182217,202.18,202.11,8.89802217]
[1739161667554,8.83502217,202.17,202.11,0.063]
[1739161670058,8.83502217,202.15,202.11,0.063]
[1739161670256,8.83502217,202.12,202.11,0.063]
[1739161671196,8.83502217,202.15,202.11,0.063]
[1739161671362,8.83502217,202.17,202.11,0.063]
[1739161672095,8.83502217,202.16,202.11,0.063]
[1739161673287,8.83502217,202.15,202.11,0.063]
[1739161673489,3.9572,202.16,202.11,0.063]
[1739161673490,8.83502217,202.13,202.11,0.063]
[1739161675190,8.83502217,202.14,202.11,0.063]
[1739161678818,8.83502217,202.15,202.11,0.063]
[1739161679688,8.83502217,202.16,202.11,0.063]
[1739161679988,8.83502217,202.13,202.11,0.063]
[1739161680892,8.83502217,202.14,202.11,0.063]
[1739161681589,8.83502217,202.15,202.11,0.063]
[1739161682283,8.86502217,202.18,202.11,8.89802217]
[1739161682612,0.03,202.17,202.13,8.83502217]
[1739161683098,0.03,202.17,202.11,8.89802217]
[1739161683402,8.86502217,202.17,202.11,0.063]
[1739161683611,8.86502217,202.17,202.11,12.85622217]
[1739161683612,0.03,202.17,202.11,12.85622217]
[1739161683903,8.86502217,202.17,202.11,12.85622217]
[1739161684087,8.86502217,202.17,202.11,4.0212]
[1739161684283,0.03,202.17,202.11,12.85622217]
[1739161685208,0.03,202.17,202.15,8.83502217]
[1739161685414,0.03,202.17,202.16,8.83502217]
[1739161685709,0.03,202.17,202.13,8.83502217]
[1739161686984,0.03,202.17,202.12,1.5621]
[1739161687179,8.83502217,202.15,202.11,0.063]
[1739161687402,8.83502217,202.14,202.11,0.063]
[1739161687906,8.83502217,202.15,202.11,0.063]
[1739161688876,8.83502217,202.12,202.11,0.063]
[1739161690392,8.83502217,202.14,202.11,0.063]
[1739161691913,8.83502217,202.13,202.11,0.063]
[1739161692205,8.83502217,202.12,202.11,0.063]
[1739161693204,12.79302217,202.12,202.11,0.063]
[1739161695181,8.83502217,202.12,202.11,0.063]
[1739161695389,70.36502217,202.14,202.11,0.063]
[1739161696196,8.83502217,202.13,202.11,0.063]
[1739161696401,8.83502217,202.12,202.11,0.063]
[1739161697102,8.83502217,202.13,202.11,0.063]
[1739161698317,8.86502217,202.14,202.11,0.063]
[1739161698843,0.03,202.14,202.11,0.063]
[1739161698989,8.83502217,202.13,202.11,0.063]
[1739161699194,8.83502217,202.12,202.11,0.063]
[1739161699710,12.79302217,202.12,202.11,0.063]
[1739161708623,8.83502217,202.13,202.11,0.063]
[1739161709329,28.83502217,202.12,202.11,0.063]
[1739161709711,20.0,202.12,202.11,0.063]
[1739161710019,8.83502217,202.13,202.11,0.063]
[1739161710905,12.79292217,202.13,202.11,0.063]
[1739161711924,8.83502217,202.12,202.11,0.063]
[1739161715430,0.03,202.14,202.11,8.89802217]
[1739161715633,0.03,202.14,202.12,8.83502217]
[1739161716331,0.03,202.14,202.11,8.89802217]
[1739161716610,8.86502217,202.14,202.11,0.063]
[1739161717134,0.03,202.12,202.11,0.063]
[1739161723336,0.03,202.12,202.11,8.89802217]
[1739161724532,0.03,202.12,202.11,12.85622217]
[1739161725239,0.03,202.12,202.11,26.5190507]
[1739161727731,0.03,202.12,202.11,23.32813182]
[1739161730845,0.03,202.12,202.11,24.32813182]
[1739161733039,0.03,202.12,202.11,23.32813182]
[1739161733422,0.03,202.12,202.11,23.20264182]
[1739161733625,0.03,202.12,202.11,9.66530329]
[1739161733823,0.03,202.12,202.11,4.0212]
[1739161734341,0.03,202.12,202.11,9.66530329]
[1739161735934,0.03,202.12,202.11,0.063]
[1739161738150,0.03,202.12,202.11,4.0212]
[1739161738356,0.03,202.12,202.11,0.063]
[1739161741358,8.85294869,202.12,202.11,0.063]
[1739161745932,0.03,202.12,202.11,0.063]
[1739161746749,12.81094869,202.12,202.11,0.063]
[1739161746926,8.85294869,202.12,202.11,0.063]
[1739161749862,12.81094869,202.12,202.11,0.063]
[1739161751849,165.06180761,202.12,202.11,0.063]
[1739161752161,155.31094869,202.12,202.11,0.063]
[1739161753050,20.0,202.09,202.02,3.96]
[1739161753268,8.82294869,202.07,202.02,3.96]
[1739161753766,8.82294869,202.06,202.01,3.9601]
[1739161754653,8.82294869,202.07,202.01,3.9601]
[1739161756757,8.82294869,202.06,202.0,3.9603]
[1739161757371,8.82294869,202.07,202.0,12.78324869]
[1739161757666,5.65145264,202.07,202.0,9.61175264]
[1739161758141,5.65145264,202.1,202.04,5.65145264]
[1739161758343,86.68145264,202.12,202.05,5.65145264]
[1739161758546,81.03,202.12,202.06,5.65145264]
[1739161758770,5.68145264,202.12,202.06,3.9592]
[1739161759151,5.68145264,202.12,202.05,5.65145264]
[1739161759473,0.03,202.12,202.09,5.65145264]
[1739161759768,0.03,202.12,202.1,5.65145264]
[1739161759976,0.03,202.12,202.11,5.65145264]
[1739161761468,0.03,202.12,202.11,9.60965264]
[1739161765851,0.03,202.12,202.11,23.27248117]
[1739161768774,0.03,202.12,202.11,24.27248117]
[1739161769455,0.03,202.13,202.12,13.53733853]
[1739161769664,0.03,202.13,202.12,20.18879117]
[1739161770269,0.0001,202.13,202.12,20.31428117]
[1739161771479,0.0001,202.13,202.12,24.27228117]
[1739161775354,0.03,202.17,202.15,20.0]
[1739161775561,0.03,202.17,202.16,39.31428117]
[1739161778281,0.03,202.17,202.16,43.27148117]
[1739161780465,0.03,202.17,202.16,65.87729173]
[1739161780860,0.0001,202.17,202.16,65.87729173]
[1739161781061,0.0001,202.17,202.16,67.44629173]
[1739161784267,81.03,202.32,202.18,0.12549]
[1739161784268,5.65145264,202.29,202.18,0.12549]
[1739161784474,81.03,202.32,202.2,39.31428117]
[1739161784475,5.65145264,202.31,202.2,39.31428117]
[1739161786570,5.65145264,202.31,202.21,13.66282853]
[1739161786772,0.03,202.32,202.21,13.66282853]
[1739161786773,5.65145264,202.25,202.21,13.53733853]
[1739161787892,5.65145264,202.26,202.22,3.956]
[1739161788689,22.60581056,202.3,202.22,3.956]
[1739161788690,5.65145264,202.27,202.22,3.956]
[1739161789095,5.65145264,202.26,202.22,3.956]
[1739161793472,5.65145264,202.3,202.23,19.18879117]
[1739161793673,5.65145264,202.29,202.23,19.18879117]
[1739161793892,5.65145264,202.28,202.22,3.956]
[1739161794095,5.65145264,202.27,202.22,3.956]
[1739161794295,5.65145264,202.27,202.22,23.956]
[1739161795500,5.65145264,202.28,202.22,23.956]
[1739161796090,5.65145264,202.28,202.22,29.60745264]
[1739161797895,5.65145264,202.29,202.22,29.60745264]
[1739161798801,5.65145264,202.28,202.22,23.956]
[1739161799387,5.65145264,202.25,202.22,3.956]
[1739161799591,5.65145264,202.25,202.2,0.18849]
[1739161799592,5.65145264,202.23,202.2,0.063]
[1739161799993,23.53280527,202.3,202.2,0.063]
[1739161799994,5.65145264,202.24,202.2,0.063]
[1739161800280,0.03,202.28,202.2,13.9105]
[1739161800486,5.68145264,202.28,202.21,5.65145264]
[1739161800701,5.68145264,202.28,202.22,13.53733853]
[1739161801807,5.68145264,202.28,202.23,5.65145264]
[1739161801808,0.03,202.28,202.23,5.65145264]
[1739161802517,0.03,202.28,202.25,19.18879117]
[1739161802703,0.03,202.32,202.31,13.66282853]
[1739161802887,0.03,202.38,202.35,0.12549]
[1739161803202,0.03,202.38,202.37,0.12549]
[1739161803590,7.57665953,202.44,202.41,13.53733853]
[1739161803793,7.57665953,202.44,202.4,25.65145264]
[1739161804302,5.65145264,202.43,202.36,5.65145264]
[1739161804490,5.65145264,202.41,202.35,6.85407067]
[1739161804803,5.65145264,202.42,202.36,39.18879117]
[1739161805012,7.57665953,202.44,202.39,5.65145264]
[1739161805504,0.92619335,202.43,202.35,2.90077067]
[1739161805917,8.80465596,202.37,202.35,2.90077067]
[1739161806083,8.80465596,202.37,202.3,8.80465596]
[1739161806285,8.80465596,202.33,202.29,1.5424]
[1739161806813,8.80465596,202.33,202.28,13.53733853]
[1739161807195,8.80465596,202.35,202.28,22.34199449]
[1739161807386,8.80465596,202.37,202.3,8.80465596]
[1739161807705,8.80465596,202.38,202.31,8.80465596]
[1739161808888,8.80465596,202.38,202.29,0.12549]
[1739161808889,8.80465596,202.37,202.3,8.80465596]
[1739161809097,8.80465596,202.34,202.28,13.41184853]
[1739161809705,8.80465596,202.35,202.28,26.17130449]
[1739161810007,8.80465596,202.35,202.28,8.80465596]
[1739161810210,0.92665291,202.39,202.26,12.88524596]
[1739161810211,8.80465596,202.33,202.26,12.88524596]
[1739161810412,8.80465596,202.33,202.27,13.41184853]
[1739161810615,8.80465596,202.34,202.27,22.21650449]
[1739161810786,8.80465596,202.33,202.26,8.93014596]
[1739161810989,8.80465596,202.33,202.26,8.80465596]
[1739161811191,8.80465596,202.35,202.28,8.80465596]
[1739161811386,12.75795596,202.37,202.3,8.80465596]
[1739161811612,61.5,202.41,202.32,0.12549]
[1739161811613,8.83465596,202.38,202.32,0.12549]
[1739161811794,0.03,202.38,202.32,8.80465596]
[1739161812114,8.80465596,202.37,202.3,8.80465596]
[1739161812413,8.80465596,202.35,202.29,8.80465596]
[1739161812798,8.80465596,202.36,202.29,8.80465596]
[1739161812998,8.80465596,202.36,202.3,8.80465596]
[1739161813194,0.03,202.38,202.32,8.80465596]
[1739161813594,0.03,202.38,202.34,8.80465596]
[1739161813808,0.03,202.38,202.35,8.80465596]
[1739161814190,0.03,202.38,202.34,8.80465596]
[1739161814391,0.03,202.38,202.35,8.80465596]
[1739161816114,0.03,202.38,202.31,0.12549]
[1739161816115,0.03,202.38,202.33,8.80465596]
[1739161816296,8.80465596,202.36,202.3,8.80465596]
[1739161816692,8.80465596,202.33,202.27,8.80465596]
[1739161816912,8.80465596,202.37,202.25,2.03648787]
[1739161816913,8.80465596,202.3,202.25,2.03648787]
[1739161817111,8.80465596,202.29,202.25,2.03648787]
[1739161817306,8.80465596,202.29,202.24,5.5248]
[1739161817615,8.80465596,202.3,202.24,14.32945596]
[1739161817813,8.80465596,202.28,202.24,1.5692]
[1739161817989,8.80465596,202.28,202.22,19.10734596]
[1739161818195,8.80465596,202.29,202.22,19.10734596]
[1739161818392,8.80465596,202.3,202.23,8.80465596]
[1739161818699,8.80465596,202.32,202.26,8.80465596]
[1739161819004,8.80465596,202.34,202.27,8.80465596]
[1739161819427,8.80465596,202.35,202.29,8.80465596]
[1739161819725,8.80465596,202.34,202.28,8.80465596]
[1739161820617,8.80465596,202.34,202.28,12.75945596]
[1739161820928,8.80465596,202.34,202.28,8.80465596]
[1739161821097,8.80465596,202.33,202.26,28.80465596]
[1739161821295,8.80465596,202.3,202.24,12.76015596]
[1739161821713,8.80465596,202.32,202.26,8.80465596]
[1739161821930,8.80465596,202.33,202.27,8.80465596]
[1739161822115,8.80465596,202.34,202.28,8.80465596]
[1739161822426,8.80465596,202.35,202.29,8.80465596]
[1739161822829,8.80465596,202.37,202.31,8.80465596]
[1739161823043,0.03,202.38,202.33,8.80465596]
[1739161823334,0.03,202.38,202.36,8.80465596]
[1739161823497,0.03,202.38,202.37,8.80465596]
[1739161823831,0.03,202.38,202.37,22.46748449]
[1739161824118,0.03,202.38,202.37,31.27214045]
[1739161824527,0.03,202.47,202.41,20.25098]
[1739161824700,0.03,202.47,202.44,8.80465596]
[1739161825710,0.03,202.47,202.44,14.06871168]
[1739161825914,0.03,202.47,202.42,14.06871168]
[1739161826133,0.03,202.47,202.41,14.06871168]
[1739161826433,0.03,202.47,202.38,14.06871168]
[1739161826626,14.06871168,202.42,202.36,14.06871168]
[1739161826813,14.06871168,202.42,202.35,14.06871168]
[1739161827127,14.06871168,202.44,202.37,14.06871168]
[1739161827330,14.06871168,202.44,202.38,14.06871168]